Cogmind - Beta 13 @@@ ROGUE MODE // 2024.07.29 @ 01:27:56 Player: Dzuchun Result: Destroyed by G-34 Mercenary with Small Laser Performance ------------- Evolutions (0) 0 Regions Visited (4) 800 Robots Destroyed (17) 85 Value Destroyed (284) 284 Prototype IDs (2) 40 Alien Tech Used (0) 0 Bonus (0) 0 TOTAL SCORE: 1209 Bonus ------- None Cogmind --------- Core Integrity 0/250 Matter 178/300 Energy 100/100 System Corruption 0% Temperature Cool (6) Movement Core (350) Ox6 Location -9/Mines Parts ------- > --- POWER (1) -------- (None) > --- PROPULSION (2) --- (None) > --- UTILITY (2) ------ Large Storage Unit > --- WEAPON (2) ------- Small Laser > --- INVENTORY (15) --- Reinforced Deuterium Engine Light Fission Core Bore Cannon Peak State ------------ > --- POWER ------------ Ion Engine > --- PROPULSION ------- Aluminum Leg Aluminum Leg > --- UTILITY ---------- Large Storage Unit > --- WEAPON ----------- EM Pulse Gun Bore Cannon > --- INVENTORY -------- Medium Matter Pod Small Laser Grenade Launcher Grenade Launcher Mining Laser [Rating: 10] Favorites ----------- Power Ion Engine Engine Ion Engine Propulsion Aluminum Leg Leg Aluminum Leg Wheel Wheel Utility Large Storage Unit Storage Large Storage Unit Weapon EM Pulse Gun Energy Gun EM Pulse Gun Ballistic Gun Light Assault Rifle Ballistic Cannon Bore Cannon Launcher Grenade Launcher Special Weapon Mining Laser Build | -11 -10 -10 -10 -9 ------- Run | Yrd Mat Min Exi Min Slots Evolved . | . . . . . Power . | . . . . . Propulsion . | . . . . . Utility . | . . . . . Weapon . | . . . . . Parts Attached 24 | 7 5 5 . 7 Power 3 | 1 . 1 . 1 Engine 3 | 1 . 1 . 1 Core . | . . . . . Reactor . | . . . . . Propulsion 5 | 4 1 . . . Treads . | . . . . . Leg 3 | 2 1 . . . Wheel 2 | 2 . . . . Hover . | . . . . . Flight . | . . . . . Utility 2 | . 2 . . . Device . | . . . . . Storage 2 | . 2 . . . Processor . | . . . . . Hackware . | . . . . . Protection . | . . . . . Artifact . | . . . . . Weapon 14 | 2 2 4 . 6 Energy Gun 5 | 1 1 1 . 2 Energy Cannon . | . . . . . Ballistic Gun 1 | 1 . . . . Ballistic Cannon 1 | . . 1 . . Launcher 6 | . 1 2 . 3 Special Weapon 1 | . . . . 1 Impact Weapon . | . . . . . Slashing Weapon . | . . . . . Piercing Weapon . | . . . . . Special Melee Weapon . | . . . . . Unidentified Prototypes . | . . . . . Parts Lost 7 | . . . . 7 Power 1 | . . . . 1 Propulsion 2 | . . . . 2 Utility . | . . . . . Weapon 4 | . . . . 4 Highest Loss Streak 4 | . . . . 4 To Critical Strikes 1 | . . . . 1 Average Slot Usage (%) 78 | . 83 85 72 65 Engine 9 | . 14 14 1 9 Leg 26 | . 28 28 28 18 Storage 13 | . 12 14 14 14 Energy Gun 15 | . 27 14 14 9 Ballistic Cannon 6 | . . 5 14 . Launcher 4 | . . 8 . 8 Naked Turns . | . . . . . Heaviest Build 36 | 6 26 36 36 31 Greatest Support 20 | 20 20 20 20 20 Greatest Overweight (x) 9 | . 1 1 1 9 Average Overweight (x) . | . . 1 1 2 Largest Inventory Capacity 25 | 5 25 15 15 15 Average Capacity 14 | 5 13 15 15 15 Most Carried 7 | 5 6 5 7 7 Average Carried 5 | 2 4 4 6 5 Final Capacity 15 | 5 15 15 15 15 Final Carried 7 | 4 5 5 7 3 Class Distribution -------------------- 100% | Mutant Dominant Class ---------------- Mutant | -10/Materials Mutant | -10/Mines Mutant | -10/Exiles Mutant | -9/Mines Resources | -11 -10 -10 -10 -9 ----------- Run | Yrd Mat Min Exi Min Matter Collected 536 | 228 95 180 . 33 Remotely . | . . . . . Salvage Created 250 | 48 112 27 . 63 Parts 28 | 2 8 5 . 13 Haulers Intercepted . | . . . . . Recyclers Shooed 1 | . . . . 1 Parts Field Recycled . | . . . . . Retrieved Matter . | . . . . . Parts Self-Destructed . | . . . . . Prevented . | . . . . . Kills | -11 -10 -10 -10 -9 ------- Run | Yrd Mat Min Exi Min Combat Hostiles Destroyed 16 | 1 3 3 . 9 Guns 5 | 1 3 . . 1 Cannons 1 | . . . . 1 AOE 10 | . . 3 . 7 Classes Destroyed 4 | 1 . 2 . 1 Tunneler 2 | . . 1 . 1 Swarmer 10 | . . 3 . 7 Grunt 5 | 1 3 . . 1 Assembled 1 | . . . . 1 Best Kill Streak 5 | 1 2 3 . 5 Combat Bots Only 4 | 1 2 3 . 4 Max Kills in Single Turn 3 | 1 1 3 . 3 Gunslinging . | . . . . . Exploded 3 | . . 3 . 3 Melee . | . . . . . Uniques/NPCs Destroyed . | . . . . . Combat | -11 -10 -10 -10 -9 -------- Run | Yrd Mat Min Exi Min Hostile Shots Fired 94 | 4 9 23 . 58 Missed 21 | 3 2 5 . 11 Damage Taken 861 | 11 78 154 . 618 Core 254 | . . 16 . 238 Absorbed by Shields . | . . . . . Core Remaining (%) 100 | 100 . . . . Volleys Fired 37 | 3 7 2 . 25 Largest 2 | 2 2 2 . 2 Hottest 140 | 60 80 70 . 140 Shots Fired 53 | 6 14 4 . 29 Gun 26 | 6 14 1 . 5 Cannon . | . . . . . Launcher 15 | . . 3 . 12 Special 12 | . . . . 12 Kinetic 3 | 3 . . . . Thermal 19 | . 7 . . 12 Explosive 15 | . . 3 . 12 Electromagnetic 16 | 3 7 1 . 5 Robot Hit Streak 5 | 5 4 2 . 4 Robot Miss Streak 2 | . 2 1 . 2 Penetration Max . | . . . . . Secondary Targets . | . . . . . Shots Hit Robots 25 | 5 8 2 . 10 Core Hits 21 | 2 5 3 . 11 Critical Kills . | . . . . . Critical Parts Destroyed . | . . . . . Critical Strikes . | . . . . . Melee Attacks . | . . . . . Impact . | . . . . . Slashing . | . . . . . Piercing . | . . . . . Sneak Attacks . | . . . . . Combat Hostiles . | . . . . . Follow-up Attacks . | . . . . . Damage Inflicted 1068 | 51 99 268 . 650 Guns 170 | 51 99 . . 20 Cannons . | . . . . . Explosions 835 | . . 253 . 582 Melee . | . . . . . Ramming 15 | . . 15 . . Kinetic 14 | 14 . . . . Thermal 81 | . 33 . . 48 Explosive 835 | . . 253 . 582 Electromagnetic 123 | 37 66 . . 20 Impact . | . . . . . Slashing . | . . . . . Piercing . | . . . . . Highest Corruption . | . . . . . Average Corruption . | . . . . . Corruption Purged . | . . . . . Corruption Blocked . | . . . . . Overload Shots . | . . . . . Overflow Damage 123 | . . 25 . 98 Projectiles . | . . . . . Explosions 123 | . . 25 . 98 Melee . | . . . . . Knockbacks . | . . . . . Impact . | . . . . . Kinetic . | . . . . . Secondary . | . . . . . Self-Inflicted Damage 85 | . . . . 85 Shots 5 | . . . . 5 Rammed . | . . . . . Targets Rammed 4 | . . 4 . . Kicked 4 | . . 4 . . Crushed . | . . . . . Highest Temperature 82 | 26 78 9 . 82 Average Temperature 29 | 15 40 5 . 28 Received Heat Transfer 232 | 6 42 40 . 144 Siege Activations . | . . . . . Robots Corrupted . | . . . . . Combat Hostiles . | . . . . . Parts Fried . | . . . . . Impact Corruptions . | . . . . . Robots Melted . | . . . . . Combat Hostiles . | . . . . . Parts Melted . | . . . . . Heat Transferred 175 | . 75 . . 100 Parts Sabotaged . | . . . . . Parts Stolen . | . . . . . Parts Stripped . | . . . . . Power Chain Reactions . | . . . . . Alert | -11 -10 -10 -10 -9 ------- Run | Yrd Mat Min Exi Min Peak Influence 189 | 20 133 138 . 189 Initial 51 | . 13 51 . . Average 61 | 6 50 55 . 121 Maximum Alert Level . | . . . . . Low Security (%) 100 | 100 100 100 . 100 Level 1 . | . . . . . Level 2 . | . . . . . Level 3 . | . . . . . Level 4 . | . . . . . Level 5 . | . . . . . High Security . | . . . . . Max Security . | . . . . . Squads Dispatched 4 | . 4 . . . Investigation 2 | . 2 . . . Extermination . | . . . . . Reinforcement 2 | . 2 . . . Assault . | . . . . . Garrison . | . . . . . Intercept . | . . . . . Searches Triggered . | . . . . . Construction Impeded . | . . . . . Haulers Reinforced . | . . . . . Active Scanning Responses . | . . . . . Cargo Convoy Interrupts . | . . . . . Stealth | -11 -10 -10 -10 -9 --------- Run | Yrd Mat Min Exi Min Distress Signals 1 | . 1 . . . Communications Jammed . | . . . . . Distress Signals . | . . . . . Times Spotted 19 | 1 4 4 . 10 Peak Tracking Total 4 | 1 2 3 . 4 Tactical Retreats 1 | . . 1 . . Traps | -11 -10 -10 -10 -9 ------- Run | Yrd Mat Min Exi Min Traps Triggered 1 | . 1 . . . Indirectly . | . . . . . Trap Hack Attempts . | . . . . . Triggered . | . . . . . Disarmed . | . . . . . Reprogrammed . | . . . . . Reused . | . . . . . Traps Extracted . | . . . . . Installed . | . . . . . Triggered . | . . . . . Machines | -11 -10 -10 -10 -9 ---------- Run | Yrd Mat Min Exi Min Machines Disabled . | . . . . . Max in Single Turn . | . . . . . Machines Repaired . | . . . . . Machines Dismantled . | . . . . . Machines Sabotaged . | . . . . . Overloaded Fab Kills . | . . . . . Hacking | -11 -10 -10 -10 -9 --------- Run | Yrd Mat Min Exi Min Machines Accessed 3 | . 2 . 1 . Terminals 2 | . 2 . . . Fabricators . | . . . . . Repair Stations . | . . . . . Recycling Units . | . . . . . Scanalyzers . | . . . . . Garrison Access . | . . . . . Total Hacks 30 | . 7 . 23 . Successful 29 | . 6 . 23 . Failed 1 | . 1 . . . Catastrophic . | . . . . . Database Lockouts . | . . . . . Manual . | . . . . . Terminals 7 | . 7 . . . Fabricators . | . . . . . Repair Stations . | . . . . . Recycling Units . | . . . . . Scanalyzers . | . . . . . Garrison Access . | . . . . . Terminal Hacks 29 | . 6 . 23 . Record 27 | . 4 . 23 . Prototype ID Bank 1 | . 1 . . . Terminal Index 1 | . 1 . . . Fabricator Hacks . | . . . . . Repair Station Hacks . | . . . . . Recycling Unit Hacks . | . . . . . Scanalyzer . | . . . . . Garrison Access Hacks . | . . . . . Unauthorized Hacks . | . . . . . Terminals . | . . . . . Fabricators . | . . . . . Repair Stations . | . . . . . Recycling Units . | . . . . . Scanalyzers . | . . . . . Garrison Access . | . . . . . Data Cores Recovered . | . . . . . Used . | . . . . . Hacking Detections 2 | . 2 . . . Full Trace Events 1 | . 1 . . . Feedback Events . | . . . . . Feedback Blocked . | . . . . . Robot Schematics Acquired . | . . . . . Robots Built . | . . . . . Authchips . | . . . . . Time . | . . . . . Total Robot Build Rating . | . . . . . Part Schematics Acquired . | . . . . . Parts Built . | . . . . . Authchips . | . . . . . Time . | . . . . . Total Part Build Rating . | . . . . . Parts Repaired . | . . . . . Time . | . . . . . Parts Recycled . | . . . . . Recycled Matter . | . . . . . Retrieved Matter . | . . . . . Retrieved Components . | . . . . . Parts Scanalyzed . | . . . . . Part Schematics Acquired . | . . . . . Parts Damaged . | . . . . . Bothacking | -11 -10 -10 -10 -9 ------------ Run | Yrd Mat Min Exi Min Used RIF Installer . | . . . . . Robots Hacked . | . . . . . Non-combat . | . . . . . Combat . | . . . . . Robot Hacks Applied . | . . . . . Relay Couplers Released . | . . . . . Fabnet Peak Effective % . | . . . . . Robots Rewired . | . . . . . Allies Hacked . | . . . . . Hacks Repelled . | . . . . . Allies | -11 -10 -10 -10 -9 -------- Run | Yrd Mat Min Exi Min Total Allies . | . . . . . Largest Group . | . . . . . Highest-Rated Group . | . . . . . Highest-Rated Ally . | . . . . . Total Orders . | . . . . . Ally Attacks . | . . . . . Total Damage . | . . . . . Kills . | . . . . . Allies Corrupted . | . . . . . Allies Melted . | . . . . . Intel | -11 -10 -10 -10 -9 ------- Run | Yrd Mat Min Exi Min Robot Analysis Total . | . . . . . Derelict Logs Recovered 3 | . . 2 . 1 Drone Launches . | . . . . . Drone Recoveries . | . . . . . Exploration | -11 -10 -10 -10 -9 ------------- Run | Yrd Mat Min Exi Min Turns Passed 2402 | 152 390 950 603 307 Spaces Moved 1229 | 152 194 485 314 84 Core 47 | 28 . . . 19 Treads . | . . . . . Legs 1068 | 10 194 485 314 65 Wheels 114 | 114 . . . . Hover . | . . . . . Flight . | . . . . . Fastest Speed 50 | 50 120 190 190 190 Average Speed 178 | 77 175 190 190 258 Slowest Speed 500 | 120 190 190 190 500 Overloaded Moves . | . . . . . Propulsion Burnouts . | . . . . . Robots Hopped . | . . . . . Cave-ins Triggered . | . . . . . Exploration Rate (%) 37 | 7 25 82 58 16 Regions Visited 4 Branch Regions 3 Pre-discovered Areas 1 | . . . 1 . Known Exits Taken . | . . . . . Unknown Exits Taken 4 | 1 1 1 1 . Scrap Searched 1 | . . 1 . . Spaces Dug . | . . . . . Terrain Destroyed 119 | . . 21 . 98 Melee . | . . . . . Projectile 4 | . . . . 4 AOE 115 | . . 21 . 94 Terrain Rammed . | . . . . . Walls Destroyed . | . . . . . Machines Disabled . | . . . . . Actions | -11 -10 -10 -10 -9 --------- Run | Yrd Mat Min Exi Min Total 1357 | 179 232 504 323 119 Wait 30 | 11 9 7 . 3 Move 1225 | 151 193 484 313 84 Hop . | . . . . . Pick Up 21 | 6 10 1 4 . Fast Attach 4 | 4 . . . . Attach 7 | 1 2 . . 4 Detach 1 | . . . 1 . Swap 13 | 2 3 5 . 3 Drop 13 | 1 8 1 3 . Fire 37 | 3 7 2 . 25 Melee . | . . . . . Ram . | . . . . . Kick 4 | . . 4 . . Crush . | . . . . . Escape Stasis . | . . . . . Rewire 2 | . . . 2 . Trap . | . . . . . Miscellaneous . | . . . . . Route ------- -11/Scrapyard -10/Materials -10/Mines (discovered 3 exits: *Mat x2 / *Exi) -10/Exiles -9/Mines (discovered 1 exit: [*Mat]) History --------- Turn | Location | Event 2 | -11/Scrapyard | Met Revision 17 89 | -11/Scrapyard | Discovered new exit (range 8) 153 | -11/Scrapyard | Entered Materials 306 | -10/Materials | Build established: Mutant 369 | -10/Materials | Discovered new exit (range 14) 543 | -10/Materials | Entered Mines 602 | -10/Mines | Assembled infested the area 607 | -10/Mines | Assisted by a Guerilla fighting off Assembled 825 | -10/Mines | Learned Materials security intel 1127 | -10/Mines | A weapon hastily lodged in a ceiling crevice suddenly fell to the ground 1286 | -10/Mines | Discovered new exit (range 8) 1327 | -10/Mines | Identified exit to Materials 1479 | -10/Mines | Deemed a non-threat by the Exiles lab entrance 1481 | -10/Mines | Discovered new exit (range 5) 1493 | -10/Mines | Entered Exiles 1574 | -10/Exiles | Met 8R-AWN 1636 | -10/Exiles | Met EX-HEX 1796 | -10/Exiles | Met EX-DEC 1899 | -10/Exiles | Learned location of Zion (-7) 2060 | -10/Exiles | Discovered new exit (range 14) 2096 | -10/Exiles | Entered Mines 2144 | -9/Mines | Learned Materials trap positions 2200 | -9/Mines | Excavation squad dispatched 2200 | -9/Mines | A large section of the Mines collapsed 2309 | -9/Mines | Core integrity fell below 50% 2340 | -9/Mines | Lost 4 parts (2n2w) 2342 | -9/Mines | Discovered new exit (range 13) 2368 | -9/Mines | Core integrity fell below 20% 2403 | -9/Mines | Destroyed by G-34 Mercenary with Small Laser Last Messages --------------- 02309_ Aluminum Leg destroyed. 02309_ Destroyed Aluminum Leg. 02309_ K-01 Serf collects debris. 02311_ The unstable cave ceiling collapses. 02312_ K-01 Serf collects debris. 02313_ The unstable cave ceiling collapses. 02316_ K-01 Serf collects debris. 02322_ The unstable cave ceiling collapses. 02331_ K-01 Serf collects debris. 02334_ The unstable cave ceiling collapses. 02338_ K-01 Serf collects debris. 02342_ EXIT=FOUND 02343_ K-01 Serf collects debris. 02344_ The unstable cave ceiling collapses. 02347_ K-01 Serf collects debris. 02349_ The unstable cave ceiling collapses. 02357_ G-34 Mercenary crushed by falling debris. 02368_ The unstable cave ceiling collapses. 02385_ Grenade Launcher destroyed. 02399_ Ion Engine destroyed. Map ----- +----------------------------------------------------+ | ?????????????????????????????????????????????????? | | ?????????????????????????????????????????????????? | | ?????????????????????????????????????????????????? | | ?????????????????????????????????????????????????? | | ?????????????????????????????????????????????????? | | ?????????????????????????????????????????????????? | | ?????????????????????????????????????????????????? | | ?????????????????????????????????????????????????? | | ??????????????????????????########???????????????? | | ???????????????????????#### #???????????????? | | ????????????????###?####### ! !! #???????????????? | | ???????????????## ###### !!!! #???????????????? | | ??????????###?## %% % !! #???????????????? | | ?????????## ## ### !!!! #???????????????? | | ?????????# #### #???????????????? | | ?????????# ### ##?# ######???????????????? | | ?????????#### ### ##??### #????????????????????? | | ??????????##" ###?????#####????????????????????? | | ????????#### ####????####???????????????????????? | | ???????## # #?##### ##??????????????????????? | | ???????# ### #?###?????? ??????????? | | ???????## # ## ## ##### k?????????? | | ???????## ### ???????????? | | ???????# # g ?????????????? | | ???????## # # ### kt#??????????????????? | | ????????# # # # @ < ##??????????????????? | | ????? # # # ##???????????????????? | | ?? ## # # # ##????????????????????? | | ?? ?# #####?????????????????????? | | ? #?# # ## #?????????????????????????? | | ??## # ## ## #?????????????????????????? | | ????# ## #?????????????????????????? | | ????### ##### #?????????????????????????? | | ? ??????? ???# #?????????????????????????? | | ? ????????? ??? #?????????????????????????? | | ????????????? ??? #?????????????????????????? | | ????????????? ???####?????????????????????????? | | ????????????? ???????????????????????????????? | | ????????????? ????????????????????????????????? | | ?????????????????????????????????????????????????? | | ?????????????????????????????????????????????????? | | ?????????????????????????????????????????????????? | | ?????????????????????????????????????????????????? | | | | | | | | | | | | | | | +----------------------------------------------------+ Best States ------------- Heat Dissipation 25 Energy Generation 10 Energy Capacity 250 Matter Stores 300 Matter Capacity 300 Sight Range 16 Terrain Scan Density 10 Evasion (%) 55 Item Schematics ----------------- None Robot Schematics ------------------ None Fabricated ------------ Nothing Alien Tech Used ----------------- None Achievements -------------- I Survived The Infestation Let's See Who's Tougher Librarian Tourist Challenges ------------ None Game ------ Seed DynamicAngularMegatreads Manual? 0 Play Time 00:38:10 Cumulative 2.2 hours Start 2024.07.28 @ 23:08:14 End 2024.07.29 @ 01:27:56 Sessions 2 Manual Loads 0 Difficulty Rogue Special Mode None Game No. 2 Rogue 2 Adventurer 0 Explorer 0 Win Type - Total 0 Types 0/0/0/0/0/0/0/0/0 Lore% 4 Gallery% 3 Achievement% 4 Wizard Run 0 Options --------- Layout 0 ASCII 0 Keyboard 1 Movement Vi Keybinds 0 Fullscreen 1 Font 18/X11Bold Map View 76x50 Zoom Use 0% Tactical HUD 1 Map Filters NONE Filters NONE Steam 1 RUN: 5bd1e5f6-72b8-4bb4-874a-7e4441dcfba9